Cogmind - Beta 13 @@@ ROGUE MODE // 2024.03.20 @ 13:02:32 Player: Rohain Result: Destroyed by G-73 Enforcer with Heavy Laser Performance ------------- Evolutions (7) 3500 Regions Visited (25) 5000 Robots Destroyed (216) 1080 Value Destroyed (11257) 11257 Prototype IDs (22) 440 Alien Tech Used (2) 400 Bonus (6210) 6210 TOTAL SCORE: 27887 Bonus ------- High Alert Combat Kills 1048 Follower Combat Kills 542 Entered Garrisons 200 Acquired ECA 300 Met Zhirov 300 Met Warlord at Base 500 MAIN.C Attacked Warlord 500 Warlord Defense Kills 240 Found Hidden Lab 3000 Friendly Fire -420 Cogmind --------- Core Integrity 0/1300 Matter 5/300 Energy 100/100 System Corruption 24% Temperature Cool (9) Movement Walking (120) Location -3/Lab Parts ------- > --- POWER (2) -------- (None) > --- PROPULSION (6) --- Myomer Leg > --- UTILITY (10) ----- Large Storage Unit Improved Targeting Computer Advanced Target Analyzer Advanced Target Analyzer Core Analyzer > --- WEAPON (3) ------- (None) > --- INVENTORY (15) --- Light Particle Reactor Advanced Heat Sink Advanced Signal Interpreter Core Reset Matrix Peak State ------------ > --- POWER ------------ Heavy Antimatter Reactor Particle Reactor > --- PROPULSION ------- Centrium Wheel High-density Centrium Wheel High-density Centrium Wheel High-density Centrium Wheel High-density Centrium Wheel High-density Centrium Wheel > --- UTILITY ---------- Advanced Cryofiber Web Advanced Heat Sink Advanced Signal Interpreter Improved Targeting Computer Advanced Target Analyzer Advanced Target Analyzer Advanced Target Analyzer Advanced Target Analyzer Core Analyzer Hardened Medium Armor Plating > --- WEAPON ----------- Gamma Rifle Railgun Linear Accelerator > --- INVENTORY -------- Micro Antimatter Reactor Myomer Leg High-density Centrium Wheel Advanced Signal Interpreter Transdimensional Reconstructor [Rating: 149] Favorites ----------- Power Cold Fusion Reactor Engine Improved Deuterium Engine Power Core Light Fission Core Reactor Cold Fusion Reactor Propulsion Carbon-fiber Leg Leg Carbon-fiber Leg Wheel High-density Centrium Wheel Flight Unit Cooled Nuclear Pulse Thruster Utility Core Analyzer Device Advanced Cooling System Storage Large Storage Unit Processor Core Analyzer Protection Improved Light Armor Plating Weapon Plasma Cannon Energy Gun Enhanced Force Rifle Energy Cannon Plasma Cannon Ballistic Gun Railgun Ballistic Cannon Gauss Cannon Launcher Grenade Launcher Build | -11 -10 -10 -9 -9 -8 -7 -7 -7 -7 -6 -6 -6 -5 -5 -5 -5 -4 -4 -4 -4 -4 -3 -3 -3 -3 ------- Run | Yrd Mat Min Mat Min Mat Fac Gar Fac Low Fac Low Low Fac Upp Upp War Pro Fac Upp Upp Zhi Pro Res Arm Lab Slots Evolved 14 | . . . 2 . 2 2 . . . 2 . . 2 . . . . 2 . . . . 2 . . Power 1 | . . . . . . . . . . . . . . . . . . . . . . . 1 . . Propulsion 4 | . . . 1 . 1 . . . . . . . 1 . . . . 1 . . . . . . . Utility 8 | . . . 1 . 1 2 . . . 1 . . 1 . . . . 1 . . . . 1 . . Weapon 1 | . . . . . . . . . . 1 . . . . . . . . . . . . . . . Parts Attached 299 | 8 3 . 13 . 19 20 39 2 3 14 1 2 33 1 2 2 . 24 12 8 7 7 56 17 6 Power 27 | 2 . . 1 . 1 3 2 . . 1 . . . . . . . 3 1 1 1 1 7 3 . Engine 8 | 2 . . 1 . 1 3 1 . . . . . . . . . . . . . . . . . . Core 3 | . . . . . . . 1 . . . . . . . . . . . . 1 . 1 . . . Reactor 16 | . . . . . . . . . . 1 . . . . . . . 3 1 . 1 . 7 3 . Propulsion 88 | 2 . . 4 . 7 7 19 1 . . . . 11 . . . . 9 2 7 3 1 8 5 2 Treads . | . . . . . . . . . . . . . . . . . . . . . . . . . . Leg 78 | 2 . . 4 . 7 7 19 1 . . . . 11 . . . . 9 2 7 . . 2 5 2 Wheel 7 | . . . . . . . . . . . . . . . . . . . . . . 1 6 . . Hover . | . . . . . . . . . . . . . . . . . . . . . . . . . . Flight 3 | . . . . . . . . . . . . . . . . . . . . . 3 . . . . Utility 97 | 1 1 . 4 . 9 6 9 1 . 7 1 . 9 . 2 . . 7 4 . 2 5 24 3 2 Device 50 | . 1 . 1 . 4 4 4 . . 4 . . 5 . 2 . . 5 3 . . 3 10 2 2 Storage 9 | 1 . . 2 . 2 . . . . . . . . . . . . 1 1 . 1 . 1 . . Processor 12 | . . . . . . 1 1 . . 1 . . . . . . . . . . . 1 7 1 . Hackware . | . . . . . . . . . . . . . . . . . . . . . . . . . . Protection 26 | . . . 1 . 3 1 4 1 . 2 1 . 4 . . . . 1 . . 1 1 6 . . Artifact . | . . . . . . . . . . . . . . . . . . . . . . . . . . Weapon 87 | 3 2 . 4 . 2 4 9 . 3 6 . 2 13 1 . 2 . 5 5 . 1 . 17 6 2 Energy Gun 30 | 1 . . 2 . 2 . 1 . . . . . 10 1 . 1 . 2 3 . 1 . 5 1 . Energy Cannon 24 | . 1 . 1 . . 2 6 . 2 5 . 1 2 . . 1 . 2 . . . . . 1 . Ballistic Gun 18 | 2 . . . . . . . . . . . . . . . . . 1 1 . . . 11 3 . Ballistic Cannon 3 | . . . . . . 1 . . . . . . . . . . . . . . . . 1 . 1 Launcher 12 | . 1 . 1 . . 1 2 . 1 1 . 1 1 . . . . . 1 . . . . 1 1 Special Weapon . | . . . . . . . . . . . . . . . . . . . . . . . . . . Impact Weapon . | . . . . . . . . . . . . . . . . . . . . . . . . . . Slashing Weapon . | . . . . . . . . . . . . . . . . . . . . . . . . . . Piercing Weapon . | . . . . . . . . . . . . . . . . . . . . . . . . . . Special Melee Weapon . | . . . . . . . . . . . . . . . . . . . . . . . . . . Unidentified Prototypes 13 | . . . . . 1 . . . . 1 . . 1 . . . . 2 . . 5 . 2 1 . Parts Lost 125 | . . . 1 . 9 8 17 . . . . 1 3 . . . . 7 5 20 . 2 21 11 20 Power 14 | . . . . . . 1 1 . . . . . . . . . . . 1 2 . . 5 2 2 Propulsion 43 | . . . . . 3 3 8 . . . . 1 1 . . . . 1 1 12 . . 2 4 7 Utility 35 | . . . . . 4 3 5 . . . . . . . . . . 3 2 3 . 2 6 1 6 Weapon 33 | . . . 1 . 2 1 3 . . . . . 2 . . . . 3 1 3 . . 8 4 5 Highest Loss Streak 20 | . . . 1 . 6 4 11 . . . . 1 3 . . . . 2 2 20 . 1 6 7 20 To Critical Strikes 1 | . . . . . . . . . . . . . . . . . . . . . . . 1 . . Average Slot Usage (%) 91 | . 85 100 99 100 90 77 96 100 100 100 100 100 98 94 94 94 94 87 89 91 31 47 88 88 68 Engine 2 | . 14 14 11 11 9 6 5 . . . . . . . . . . . . . . . . . . Reactor 3 | . . . . . . . . . . 5 6 6 5 5 5 5 5 5 5 4 3 . 6 8 6 Leg 25 | . 28 28 33 33 35 29 29 30 30 26 26 26 28 29 29 29 29 30 30 30 . . 1 11 10 Wheel 2 | . . . . . . . . . . . . . . . . . . . . . . . 19 15 6 Device 12 | . 1 14 11 11 16 12 15 15 15 18 13 13 14 11 11 11 11 9 12 14 . 5 8 6 7 Storage 6 | . 14 14 11 11 11 7 7 7 7 6 6 6 5 5 5 5 5 5 6 10 . . 1 4 4 Processor 14 | . . . . . . 3 12 15 15 14 20 20 17 17 17 17 17 15 15 15 15 19 26 27 21 Protection 4 | . . . 10 11 7 2 6 7 7 5 6 6 6 5 5 5 5 5 1 . . . 2 . . Energy Gun 7 | . 8 . 7 11 2 3 . . . . . . 8 17 17 16 17 12 14 14 2 . 4 1 1 Energy Cannon 6 | . 5 14 10 11 8 4 14 15 13 19 20 19 8 . . . . 1 . . . . . . 1 Ballistic Gun 1 | . . . . . . . . . . . . . . . . . . . . . . . 6 8 3 Naked Turns . | . . . . . . . . . . . . . . . . . . . . . . . . . . Heaviest Build 88 | 12 17 17 24 24 45 50 54 51 52 69 69 69 88 73 73 76 73 77 67 56 24 29 81 82 75 Greatest Support 138 | 20 20 20 36 36 46 62 75 78 78 78 78 78 93 85 85 85 85 133 133 138 18 18 120 120 100 Greatest Overweight (x) 5 | . . . . . . . 1 . . . . . 1 . . . . . . 1 5 1 4 1 3 Average Overweight (x) . | . . . . . . . . . . . . . . . . . . . . . . . . . . Largest Inventory Capacity 15 | 8 8 8 15 8 15 15 15 15 15 15 15 15 15 15 15 15 15 15 15 15 5 5 15 15 15 Average Capacity 13 | 6 8 8 8 8 15 15 15 15 15 15 15 15 15 15 15 15 15 15 15 14 5 5 8 15 15 Most Carried 15 | 3 7 7 8 8 12 15 15 15 15 15 15 15 15 15 15 15 15 15 15 13 5 5 15 15 9 Average Carried 12 | 1 4 7 7 8 9 9 14 14 14 14 14 15 14 15 15 15 14 14 13 12 4 4 7 11 6 Final Capacity 15 | 8 8 8 8 8 15 15 15 15 15 15 15 15 15 15 15 15 15 15 15 5 5 5 15 15 15 Final Carried 15 | 3 7 7 8 8 6 15 15 15 15 15 15 15 15 15 15 15 15 14 12 5 5 5 15 9 4 Class Distribution -------------------- 51% | Scavenger-Gunner 23% | Mutant 17% | Scavenger-Mutant 6% | Gunner Dominant Class ---------------- Mutant | -10/Materials Mutant | -10/Mines Mutant | -9/Materials Mutant | -9/Mines Mutant | -8/Materials Mutant | -7/Factory Scavenger-Mutant | -7/Garrison Mutant | -7/Factory Mutant | -7/Lower Caves Gunner | -6/Factory Scavenger-Gunner | -6/Lower Caves Scavenger-Gunner | -6/Lower Caves Scavenger-Gunner | -5/Factory Scavenger-Gunner | -5/Upper Caves Scavenger-Gunner | -5/Upper Caves Scavenger-Gunner | -5/Warlord Scavenger-Gunner | -4/Proximity Caves Scavenger-Gunner | -4/Factory Scavenger-Gunner | -4/Upper Caves Scavenger-Gunner | -4/Upper Caves Mutant | -4/Zhirov Sprinter | -3/Proximity Caves Scavenger-Gunner | -3/Research Scavenger-Gunner | -3/Armory Scavenger-Mutant | -3/Lab Resources | -11 -10 -10 -9 -9 -8 -7 -7 -7 -7 -6 -6 -6 -5 -5 -5 -5 -4 -4 -4 -4 -4 -3 -3 -3 -3 ----------- Run | Yrd Mat Min Mat Min Mat Fac Gar Fac Low Fac Low Low Fac Upp Upp War Pro Fac Upp Upp Zhi Pro Res Arm Lab Matter Collected 4575 | 195 155 10 140 . 189 358 421 20 43 180 27 82 318 20 20 20 . 235 138 25 80 65 1447 370 17 Remotely . | . . . . . . . . . . . . . . . . . . . . . . . . . . Salvage Created 11640 | . 237 28 279 . 677 535 1614 260 137 305 75 138 1182 58 . 95 . 1018 635 452 372 . 2686 857 . Parts 497 | . 25 5 14 . 26 23 66 9 5 16 2 2 44 3 . . . 40 26 11 2 . 135 43 . Haulers Intercepted 2 | . . . . . 1 . . . . . . . . . . . . . . . . . 1 . . Recyclers Shooed 1 | . . . . . 1 . . . . . . . . . . . . . . . . . . . . Parts Field Recycled . | . . . . . . . . . . . . . . . . . . . . . . . . . . Retrieved Matter . | . . . . . . . . . . . . . . . . . . . . . . . . . . Parts Self-Destructed 64 | . . . . . . . . . 5 . 1 1 . 3 . . 6 . 25 20 2 1 . . . Prevented 3 | . . . . . . . . . . . . . . . . . . . 3 . . . . . . Kills | -11 -10 -10 -9 -9 -8 -7 -7 -7 -7 -6 -6 -6 -5 -5 -5 -5 -4 -4 -4 -4 -4 -3 -3 -3 -3 ------- Run | Yrd Mat Min Mat Min Mat Fac Gar Fac Low Fac Low Low Fac Upp Upp War Pro Fac Upp Upp Zhi Pro Res Arm Lab Combat Hostiles Destroyed 199 | . 9 3 9 . 11 13 30 4 3 7 1 4 22 1 . 1 . 11 13 7 . . 39 11 . Guns 86 | . 1 . . . 3 . 1 . . . . . 14 1 . 1 . 5 13 5 . . 31 11 . Cannons 70 | . 2 . 6 . 8 11 22 4 1 3 . 1 3 . . . . 2 . . . . 7 . . AOE 31 | . 6 3 3 . . 1 6 . 2 3 . 3 3 . . . . 1 . . . . . . . Classes Destroyed 17 | . 6 . 1 . 2 2 1 . . 1 . . . . . 1 . 3 . . . . . . . Worker 4 | . 1 . . . 1 . . 1 . . . . . . . . . . . . . . 1 . . Builder 5 | . 2 . . . . . . . . . . . . . . . . 1 . . . . 2 . . Hauler 2 | . . . . . 1 . . . . . . . . . . . . . . . . . 1 . . Recycler 3 | . 1 . . . . . . . . . . . 1 . . . . 1 . . . . . . . Operator 1 | . 1 . . . . . . . . . . . . . . . . . . . . . . . . Watcher 1 | . . . . . . . . . . . . . . . . . . 1 . . . . . . . Swarmer 44 | . 6 3 3 . . . 7 . . 3 . . 9 . . . . . 6 2 . . 5 . . Grunt 71 | . 3 . 5 . 8 5 13 4 2 . . 4 7 1 . . . . 4 3 . . 12 . . Brawler 5 | . . . . . 1 . 1 . 1 . . . . . . . . . . 1 . . . 1 . Duelist 2 | . . . . . . 1 1 . . . . . . . . . . . . . . . . . . Sentry 24 | . . . 1 . 2 6 5 . . . 1 . 1 . . . . 1 1 1 . . 4 1 . Specialist 6 | . . . . . . . . . . . . . . . . . . 2 . . . . . 4 . Hunter 17 | . . . . . . . 1 . . 1 . . 1 . . . . 6 . . . . 8 . . Programmer 27 | . . . . . . 1 3 . . 2 . . 4 . . . . 1 2 . . . 10 4 . Heavy 2 | . . . . . . . . . . . . . . . . . . 1 . . . . . 1 . Behemoth 1 | . . . . . . . . . . 1 . . . . . . . . . . . . . . . Executioner 1 | . . . . . . . . . . . . . . . . 1 . . . . . . . . . Best Kill Streak 7 | . 7 3 6 . 3 6 6 4 3 3 1 4 5 1 . 1 . 3 6 3 . . 7 4 . Combat Bots Only 6 | . 3 3 6 . 3 6 6 3 3 3 1 4 5 1 . 1 . 2 6 3 . . 6 4 . Max Kills in Single Turn 3 | . 3 3 3 . 1 1 2 2 2 1 1 1 3 1 . 1 . 1 2 1 . . 2 2 . Gunslinging 1 | . . . . . . . . . . . . . 1 . . . . . 1 . . . . 1 . Exploded 3 | . 3 3 3 . . 1 2 . 2 1 . 1 3 . . . . 1 . . . . . . . Melee . | . . . . . . . . . . . . . . . . . . . . . . . . . . Uniques/NPCs Destroyed . | . . . . . . . . . . . . . . . . . . . . . . . . . . Combat | -11 -10 -10 -9 -9 -8 -7 -7 -7 -7 -6 -6 -6 -5 -5 -5 -5 -4 -4 -4 -4 -4 -3 -3 -3 -3 -------- Run | Yrd Mat Min Mat Min Mat Fac Gar Fac Low Fac Low Low Fac Upp Upp War Pro Fac Upp Upp Zhi Pro Res Arm Lab Hostile Shots Fired 2163 | . 12 2 52 . 100 237 249 28 6 11 9 26 91 1 . 14 1 130 70 161 . 30 403 435 95 Missed 799 | . 2 1 19 . 25 100 78 10 2 7 5 11 27 . . 7 . 42 32 65 . 16 129 191 30 Damage Taken 21248 | . 133 10 438 . 1220 1472 2185 280 63 126 33 301 1059 18 . 153 8 1773 706 1608 . 307 4767 3000 1588 Core 2935 | . 60 . 66 . 196 216 261 47 . 14 . . 65 . . 51 . 72 119 338 . 152 566 351 361 Absorbed by Shields 1468 | . . . . . . . . . . . . . . . . 85 8 231 . . . . 1144 . . Ignored by Resistances 129 | . . . . . . . . . . . . . 129 . . . . . . . . . . . . Regen/Repaired (Parts) 153 | . . . . . . . . . . . . . . . . 153 . . . . . . . . . Core Remaining (%) 71 | 100 . 76 . 83 64 . . . 25 . . 98 . . . . 88 . . . . 40 . . . Volleys Fired 642 | . 25 1 35 . 78 49 101 11 5 11 1 6 45 1 . 8 . 38 20 10 13 . 121 41 22 Largest 3 | . 2 1 1 . 2 2 2 2 2 3 3 3 3 3 . 3 . 3 3 3 1 . 3 3 3 Hottest 265 | . 80 30 68 . 123 160 165 165 121 260 265 265 265 250 . 260 . 254 250 237 88 . 238 259 242 Shots Fired 1243 | . 26 1 35 . 87 65 189 22 6 25 3 15 103 3 . 24 . 103 60 30 13 . 298 92 43 Gun 709 | . 19 . 1 . 23 . 3 . . . . . 75 3 . 20 . 85 60 30 13 . 277 83 17 Cannon 509 | . 3 . 33 . 64 65 179 22 5 21 3 11 27 . . 4 . 18 . . . . 21 7 26 Launcher 25 | . 4 1 1 . . . 7 . 1 4 . 4 1 . . . . . . . . . . 2 . Special . | . . . . . . . . . . . . . . . . . . . . . . . . . . Kinetic 325 | . . . . . . 33 . . . . . . . . . . . . . . . . 206 58 28 Thermal 886 | . 22 . 34 . 87 32 182 22 5 21 3 11 102 3 . 24 . 103 60 30 13 . 85 32 15 Explosive 25 | . 4 1 1 . . . 7 . 1 4 . 4 1 . . . . . . . . . . 2 . Electromagnetic 7 | . . . . . . . . . . . . . . . . . . . . . . . 7 . . Robot Hit Streak 23 | . 11 2 7 . 11 10 21 7 9 8 10 12 23 9 . 21 . 11 8 9 9 . 14 11 10 Robot Miss Streak 5 | . 2 . 3 . 4 2 2 2 1 1 . 1 1 . . . . 4 4 2 1 . 3 3 5 Penetration Max 1 | . . . . . . . . . . . . . . . . . . . . . . . 1 . . Secondary Targets 24 | . . . . . . . . . . . . . 4 . . 1 . 1 5 1 . . 7 5 . Max Gunslinging Chain 1 | . . . . . . . . . . . . . 1 . . 1 . 1 1 1 . . 1 1 . Shots Hit Robots 835 | . 19 1 23 . 62 47 101 15 3 18 2 11 77 1 . 12 . 72 35 23 12 . 211 61 29 Core Hits 415 | . 17 3 14 . 21 20 57 7 6 7 1 12 36 1 . 4 . 29 19 15 8 . 99 28 11 Critical Kills 20 | . . . . . . . 1 . . 1 1 . 3 . . 1 . 2 2 . . . 8 1 . Critical Parts Destroyed 23 | . . . . . . . . . . . . . 1 . . 1 . 4 . . . . 13 4 . Critical Strikes 85 | . 3 . . . 1 1 1 . . 1 1 . 8 . . 3 . 9 9 7 . . 33 5 3 Burn 32 | . 3 . . . 1 . . . . . . . 4 . . 1 . 2 7 7 . . 7 . . Meltdown 4 | . . . . . . . 1 . . 1 1 . 1 . . . . . . . . . . . . Destroy 41 | . . . . . . . . . . . . . 3 . . 2 . 7 2 . . . 22 5 . Blast 6 | . . . . . . 1 . . . . . . . . . . . . . . . . 2 . 3 Corrupt 2 | . . . . . . . . . . . . . . . . . . . . . . . 2 . . Melee Attacks . | . . . . . . . . . . . . . . . . . . . . . . . . . . Impact . | . . . . . . . . . . . . . . . . . . . . . . . . . . Slashing . | . . . . . . . . . . . . . . . . . . . . . . . . . . Piercing . | . . . . . . . . . . . . . . . . . . . . . . . . . . Sneak Attacks . | . . . . . . . . . . . . . . . . . . . . . . . . . . Combat Hostiles . | . . . . . . . . . . . . . . . . . . . . . . . . . . Follow-up Attacks . | . . . . . . . . . . . . . . . . . . . . . . . . . . Damage Inflicted 24914 | . 671 160 631 . 1416 1283 3403 473 276 843 63 773 2098 23 . 257 . 2176 875 520 360 . 5790 2068 755 Guns 12351 | . 200 . . . 375 . 65 . . . . . 1235 23 . 257 . 1443 875 520 360 . 5177 1618 203 Cannons 9304 | . 35 . 467 . 1041 1283 2540 473 123 518 63 250 715 . . . . 425 . . . . 593 226 552 Explosions 3236 | . 436 160 164 . . . 798 . 153 325 . 520 148 . . . . 308 . . . . . 224 . Melee . | . . . . . . . . . . . . . . . . . . . . . . . . . . Ramming 23 | . . . . . . . . . . . . 3 . . . . . . . . . . 20 . . Kinetic 6481 | . . . . . . 680 . . . . . . . . . . . . . . . . 4227 1033 541 Thermal 15007 | . 235 . 467 . 1416 603 2605 473 123 518 63 250 1950 23 . 257 . 1868 875 520 360 . 1376 811 214 Explosive 3236 | . 436 160 164 . . . 798 . 153 325 . 520 148 . . . . 308 . . . . . 224 . Electromagnetic 167 | . . . . . . . . . . . . . . . . . . . . . . . 167 . . Impact . | . . . . . . . . . . . . . . . . . . . . . . . . . . Slashing . | . . . . . . . . . . . . . . . . . . . . . . . . . . Piercing . | . . . . . . . . . . . . . . . . . . . . . . . . . . Highest Corruption 24 | . . . . . 3 . . . . 1 1 1 . . . . . 1 . . . 2 8 10 24 Average Corruption 5 | . . . . . 3 . . . . 1 1 1 . . . . . 1 . . . 2 5 8 15 Corruption Purged 8 | . . . . . . . . . . . . . . . . . . 3 . . . . 5 . . Corruption Blocked 8 | . . . . . . . . . . 8 . . . . . . . . . . . . . . . Effects 57 | . . . . . 10 . . . . . 2 1 . . . . . 1 . . . . 21 14 8 Message Errors 11 | . . . . . 1 . . . . . . . . . . . . . . . . . 7 2 1 Matter Fused 15 | . . . . . 4 . . . . . 2 . . . . . . . . . . . 3 4 2 Heat Flow Errors 3 | . . . . . . . . . . . . . . . . . . 1 . . . . . 2 . Energy Discharges 5 | . . . . . 1 . . . . . . . . . . . . . . . . . 3 1 . Parts Fused 1 | . . . . . . . . . . . . . . . . . . . . . . . 1 . . Data Loss (minor) 10 | . . . . . 2 . . . . . . . . . . . . . . . . . 3 3 2 Data Loss (major) 3 | . . . . . . . . . . . . . . . . . . . . . . . 2 1 . Misfires 4 | . . . . . 1 . . . . . . 1 . . . . . . . . . . . . 2 Weapon Failures 5 | . . . . . 1 . . . . . . . . . . . . . . . . . 2 1 1 Overload Shots . | . . . . . . . . . . . . . . . . . . . . . . . . . . Overflow Damage 291 | . 8 . . . 17 . 49 . . 49 . 32 11 . . . . 33 . . . . 42 48 2 Projectiles 137 | . . . . . 17 . 27 . . . . 32 11 . . . . 6 . . . . 42 . 2 Explosions 154 | . 8 . . . . . 22 . . 49 . . . . . . . 27 . . . . . 48 . Melee . | . . . . . . . . . . . . . . . . . . . . . . . . . . Knockbacks 14 | . . . . . . 7 . . . . . . . . . . . . . . . . 1 . 6 Impact . | . . . . . . . . . . . . . . . . . . . . . . . . . . Kinetic 13 | . . . . . . 6 . . . . . . . . . . . . . . . . 1 . 6 Secondary 1 | . . . . . . 1 . . . . . . . . . . . . . . . . . . . Self-Inflicted Damage 366 | . 8 . . . . . 139 . . 58 . . . . . . . 125 . . . . 9 27 . Shots 8 | . 1 . . . . . 2 . . 2 . . . . . . . 2 . . . . . 1 . Rammed 3 | . . . . . . . . . . . . . . . . . . . . . . . 3 . . Targets Rammed 4 | . . . . . . . . . . . . 1 . . . . . . . . . . 3 . . Kicked 1 | . . . . . . . . . . . . 1 . . . . . . . . . . . . . Crushed . | . . . . . . . . . . . . . . . . . . . . . . . . . . Highest Temperature 587 | . 142 . 61 . 270 28 327 90 . 120 66 78 225 66 . 150 . 447 546 78 120 . 433 587 224 Average Temperature 93 | . 47 . 21 . 66 14 84 40 . 48 34 42 60 36 . 65 . 139 204 25 52 . 110 220 122 Received Heat Transfer 3635 | . 69 . 207 . 639 498 579 180 36 . 12 117 270 9 . . . . 66 48 . 60 548 195 102 Effects 14 | . . . . . 3 . . . . . . . . . . . . . 5 . . . 1 2 3 Shutdowns 2 | . . . . . . . . . . . . . . . . . . . 2 . . . . . . Energy Bleed 1 | . . . . . . . . . . . . . . . . . . . 1 . . . . . . Interference 6 | . . . . . 3 . . . . . . . . . . . . . . . . . . . 3 Matter Decay 1 | . . . . . . . . . . . . . . . . . . . 1 . . . . . . Short Circuit 3 | . . . . . . . . . . . . . . . . . . . 1 . . . . 2 . Damage (minor) 1 | . . . . . . . . . . . . . . . . . . . . . . . 1 . . Siege Activations . | . . . . . . . . . . . . . . . . . . . . . . . . . . Robots Corrupted . | . . . . . . . . . . . . . . . . . . . . . . . . . . Combat Hostiles . | . . . . . . . . . . . . . . . . . . . . . . . . . . Parts Fried 3 | . . . . . . . 1 . . 2 . . . . . . . . . . . . . . . Impact Corruptions . | . . . . . . . . . . . . . . . . . . . . . . . . . . Robots Melted 14 | . . . . . . 1 3 . . 1 1 . 2 . . . . 3 . 2 . . 1 . . Combat Hostiles 12 | . . . . . . 1 1 . . 1 1 . 2 . . . . 3 . 2 . . 1 . . Parts Melted 117 | . 2 . 2 . 4 6 17 1 . 5 2 . 14 . . 6 . 17 6 15 . . 19 1 . Heat Transferred 27914 | . 888 . 925 . 2479 1150 4819 759 148 581 87 335 3691 37 . 499 . 3398 2069 1486 425 . 3084 851 203 Parts Sabotaged . | . . . . . . . . . . . . . . . . . . . . . . . . . . Parts Stolen . | . . . . . . . . . . . . . . . . . . . . . . . . . . Parts Stripped . | . . . . . . . . . . . . . . . . . . . . . . . . . . Power Chain Reactions . | . . . . . . . . . . . . . . . . . . . . . . . . . . Alert | -11 -10 -10 -9 -9 -8 -7 -7 -7 -7 -6 -6 -6 -5 -5 -5 -5 -4 -4 -4 -4 -4 -3 -3 -3 -3 ------- Run | Yrd Mat Min Mat Min Mat Fac Gar Fac Low Fac Low Low Fac Upp Upp War Pro Fac Upp Upp Zhi Pro Res Arm Lab Peak Influence 1215 | . 334 173 590 160 305 185 1215 792 . 450 . . 360 . . . . 337 . . . . 771 693 . Initial 637 | . . 93 66 160 62 89 60 637 . 359 . . 140 . . . . . . . . . 63 404 . Average 324 | . 158 121 332 160 166 70 598 667 . 335 . . 211 . . . . 127 . . . . 371 500 . Maximum Alert Level 4 | . 1 . 2 . 1 . 4 3 . 2 . . 1 . . . . 1 . . . . 3 2 . Low Security (%) 43 | 100 57 100 28 100 65 100 15 . . 1 . . 51 . . . . 77 . . . . 44 . . Level 1 24 | . 42 . 43 . 34 . 9 . . 73 . . 48 . . . . 22 . . . . 7 . . Level 2 23 | . . . 27 . . . 39 78 . 24 . . . . . . . . . . . . 38 100 . Level 3 7 | . . . . . . . 26 21 . . . . . . . . . . . . . . 9 . . Level 4 1 | . . . . . . . 8 . . . . . . . . . . . . . . . . . . Level 5 . | . . . . . . . . . . . . . . . . . . . . . . . . . . High Security . | . . . . . . . . . . . . . . . . . . . . . . . . . . Max Security . | . . . . . . . . . . . . . . . . . . . . . . . . . . Squads Dispatched 38 | . 1 . 1 . 1 8 . . . 4 . 1 6 . . . . 4 . 1 . 1 6 4 . Investigation 6 | . . . 1 . 1 . . . . 1 . . 2 . . . . . . . . . 1 . . Extermination 10 | . . . . . . 1 . . . 2 . . 2 . . . . 1 . . . . 3 1 . Reinforcement 12 | . 1 . . . . 1 . . . 1 . . 1 . . . . 3 . . . . 2 3 . Assault 3 | . . . . . . . . . . . . 1 . . . . . . . 1 . 1 . . . Garrison 7 | . . . . . . 6 . . . . . . 1 . . . . . . . . . . . . Intercept . | . . . . . . . . . . . . . . . . . . . . . . . . . . Searches Triggered . | . . . . . . . . . . . . . . . . . . . . . . . . . . Construction Impeded 2 | . . . . . . . . . . . . . 1 . . . . 1 . . . . . . . Haulers Reinforced . | . . . . . . . . . . . . . . . . . . . . . . . . . . Active Scanning Responses . | . . . . . . . . . . . . . . . . . . . . . . . . . . Cargo Convoy Interrupts 1 | . . . . . . 1 . . . . . . . . . . . . . . . . . . . Stealth | -11 -10 -10 -9 -9 -8 -7 -7 -7 -7 -6 -6 -6 -5 -5 -5 -5 -4 -4 -4 -4 -4 -3 -3 -3 -3 --------- Run | Yrd Mat Min Mat Min Mat Fac Gar Fac Low Fac Low Low Fac Upp Upp War Pro Fac Upp Upp Zhi Pro Res Arm Lab Distress Signals 7 | . . . 1 . 2 . . . . . . . . . . 1 . . . . . . 3 . . Communications Jammed . | . . . . . . . . . . . . . . . . . . . . . . . . . . Distress Signals . | . . . . . . . . . . . . . . . . . . . . . . . . . . Times Spotted 338 | . 17 3 20 1 19 15 41 6 3 11 1 14 26 1 . 15 5 15 17 18 . 17 53 16 4 Peak Tracking Total 14 | . 4 3 4 1 5 6 6 3 3 3 1 9 5 . . 13 5 3 5 12 . 14 6 6 4 Tactical Retreats 22 | . 3 . . . 1 . 4 . . . . . . . . 2 . 2 1 4 . 2 2 1 . Traps | -11 -10 -10 -9 -9 -8 -7 -7 -7 -7 -6 -6 -6 -5 -5 -5 -5 -4 -4 -4 -4 -4 -3 -3 -3 -3 ------- Run | Yrd Mat Min Mat Min Mat Fac Gar Fac Low Fac Low Low Fac Upp Upp War Pro Fac Upp Upp Zhi Pro Res Arm Lab Traps Triggered 12 | . . . . . 1 1 1 . . 2 . . 3 . . . . 1 . . . . 3 . . Indirectly . | . . . . . . . . . . . . . . . . . . . . . . . . . . Trap Hack Attempts . | . . . . . . . . . . . . . . . . . . . . . . . . . . Triggered . | . . . . . . . . . . . . . . . . . . . . . . . . . . Disarmed . | . . . . . . . . . . . . . . . . . . . . . . . . . . Reprogrammed . | . . . . . . . . . . . . . . . . . . . . . . . . . . Reused . | . . . . . . . . . . . . . . . . . . . . . . . . . . Traps Extracted . | . . . . . . . . . . . . . . . . . . . . . . . . . . Installed . | . . . . . . . . . . . . . . . . . . . . . . . . . . Triggered 10 | . . . . . . 1 . . . . . . . 1 . 7 1 . . . . . . . . Machines | -11 -10 -10 -9 -9 -8 -7 -7 -7 -7 -6 -6 -6 -5 -5 -5 -5 -4 -4 -4 -4 -4 -3 -3 -3 -3 ---------- Run | Yrd Mat Min Mat Min Mat Fac Gar Fac Low Fac Low Low Fac Upp Upp War Pro Fac Upp Upp Zhi Pro Res Arm Lab Machines Disabled 24 | . . . 1 . 1 1 4 1 . 2 . . 3 . . . . 5 . . . . . 2 4 Max in Single Turn 2 | . . . 1 . 1 1 1 1 . 1 . . 1 . . . . 2 . . . . . 1 1 Garrison Access 1 | . . . . . . . . . . . . . . . . . . . . . . . 1 . . Garrison Relay 2 | . . . . . . . 2 . . . . . . . . . . . . . . . . . . Phase Generator 1 | . . . . . . . 1 . . . . . . . . . . . . . . . . . . Machines Repaired . | . . . . . . . . . . . . . . . . . . . . . . . . . . Machines Dismantled . | . . . . . . . . . . . . . . . . . . . . . . . . . . Machines Sabotaged . | . . . . . . . . . . . . . . . . . . . . . . . . . . Overloaded Fab Kills . | . . . . . . . . . . . . . . . . . . . . . . . . . . Hacking | -11 -10 -10 -9 -9 -8 -7 -7 -7 -7 -6 -6 -6 -5 -5 -5 -5 -4 -4 -4 -4 -4 -3 -3 -3 -3 --------- Run | Yrd Mat Min Mat Min Mat Fac Gar Fac Low Fac Low Low Fac Upp Upp War Pro Fac Upp Upp Zhi Pro Res Arm Lab Machines Accessed 39 | . 5 . 5 . 2 5 2 1 . . . . 1 1 . 4 . . . . 9 . 3 . 1 Terminals 18 | . 5 . 5 . 2 3 2 1 . . . . . . . . . . . . . . . . . Fabricators 3 | . . . . . . 1 . . . . . . . . . . . . . . . . 2 . . Repair Stations . | . . . . . . . . . . . . . . . . . . . . . . . . . . Recycling Units . | . . . . . . . . . . . . . . . . . . . . . . . . . . Scanalyzers . | . . . . . . . . . . . . . . . . . . . . . . . . . . Garrison Access 3 | . . . . . . 1 . . . . . . 1 . . . . . . . . . 1 . . Total Hacks 109 | . 12 . 11 . 4 8 2 2 . . . . 2 1 . 13 . . . . 48 . 5 . 1 Successful 85 | . 7 . 5 . 2 5 . 1 . . . . . 1 . 13 . . . . 48 . 2 . 1 Failed 23 | . 4 . 6 . 2 3 2 1 . . . . 2 . . . . . . . . . 3 . . Catastrophic 2 | . . . 1 . . . . . . . . . . . . . . . . . . . 1 . . Database Lockouts 1 | . 1 . . . . . . . . . . . . . . . . . . . . . . . . Manual 41 | . 12 . 11 . 4 4 1 2 . . . . . . . 1 . . . . . . 5 . 1 Terminals 36 | . 12 . 11 . 4 5 2 2 . . . . . . . . . . . . . . . . . Fabricators 5 | . . . . . . 1 . . . . . . . . . . . . . . . . 4 . . Repair Stations . | . . . . . . . . . . . . . . . . . . . . . . . . . . Recycling Units . | . . . . . . . . . . . . . . . . . . . . . . . . . . Scanalyzers . | . . . . . . . . . . . . . . . . . . . . . . . . . . Garrison Access 5 | . . . . . . 2 . . . . . . 2 . . . . . . . . . 1 . . Terminal Hacks 70 | . 3 . 1 . 1 1 . 1 . . . . . 1 . 13 . . . . 48 . . . 1 Record 49 | . . . . . . . . . . . . . . . . 12 . . . . 36 . . . 1 Part Schematic 4 | . . . . . . . . . . . . . . . . . . . . . 4 . . . . Robot Analysis 6 | . 2 . . . . . . . . . . . . . . . . . . . 4 . . . . Prototype ID Bank 4 | . . . . . . . . . . . . . . . . . . . . . 4 . . . . Open Door 2 | . . . . . . . . . . . . . . 1 . 1 . . . . . . . . . Branch Access Points 3 | . 1 . . . 1 . . 1 . . . . . . . . . . . . . . . . . Locate Traps 1 | . . . . . . 1 . . . . . . . . . . . . . . . . . . . Recall Investigation 1 | . . . 1 . . . . . . . . . . . . . . . . . . . . . . Fabricator Hacks 1 | . . . . . . 1 . . . . . . . . . . . . . . . . . . . Build 1 | . . . . . . 1 . . . . . . . . . . . . . . . . . . . Repair Station Hacks . | . . . . . . . . . . . . . . . . . . . . . . . . . . Recycling Unit Hacks . | . . . . . . . . . . . . . . . . . . . . . . . . . . Scanalyzer . | . . . . . . . . . . . . . . . . . . . . . . . . . . Garrison Access Hacks 1 | . . . . . . 1 . . . . . . . . . . . . . . . . . . . Unlock Access 1 | . . . . . . 1 . . . . . . . . . . . . . . . . . . . Unauthorized Hacks 13 | . 4 . 4 . 1 2 . . . . . . . . . . . . . . . . 2 . . Terminals 11 | . 4 . 4 . 1 2 . . . . . . . . . . . . . . . . . . . Botnet 11 | . 4 . 4 . 1 2 . . . . . . . . . . . . . . . . . . . Fabricators 1 | . . . . . . . . . . . . . . . . . . . . . . . 1 . . Fabnet 1 | . . . . . . . . . . . . . . . . . . . . . . . 1 . . Repair Stations . | . . . . . . . . . . . . . . . . . . . . . . . . . . Recycling Units . | . . . . . . . . . . . . . . . . . . . . . . . . . . Scanalyzers . | . . . . . . . . . . . . . . . . . . . . . . . . . . Garrison Access 1 | . . . . . . . . . . . . . . . . . . . . . . . 1 . . Jam 1 | . . . . . . . . . . . . . . . . . . . . . . . 1 . . Data Cores Recovered 1 | . 1 . . . . . . . . . . . . . . . . . . . . . . . . Used . | . . . . . . . . . . . . . . . . . . . . . . . . . . Hacking Detections 16 | . 2 . 4 . 2 3 2 . . . . . 1 . . . . . . . . . 2 . . Full Trace Events 2 | . . . 1 . . . . . . . . . 1 . . . . . . . . . . . . Feedback Events . | . . . . . . . . . . . . . . . . . . . . . . . . . . Feedback Blocked . | . . . . . . . . . . . . . . . . . . . . . . . . . . Robot Schematics Acquired . | . . . . . . . . . . . . . . . . . . . . . . . . . . Robots Built 3 | . . . . . . 3 . . . . . . . . . . . . . . . . . . . Authchips . | . . . . . . . . . . . . . . . . . . . . . . . . . . Time 134 | . . . . . . 134 . . . . . . . . . . . . . . . . . . . Total Robot Build Rating 12 | . . . . . . 12 . . . . . . . . . . . . . . . . . . . Part Schematics Acquired 4 | . . . . . . . . . . . . . . . . . . . . . 4 . . . . Parts Built . | . . . . . . . . . . . . . . . . . . . . . . . . . . Authchips . | . . . . . . . . . . . . . . . . . . . . . . . . . . Time . | . . . . . . . . . . . . . . . . . . . . . . . . . . Total Part Build Rating . | . . . . . . . . . . . . . . . . . . . . . . . . . . Parts Repaired . | . . . . . . . . . . . . . . . . . . . . . . . . . . Time . | . . . . . . . . . . . . . . . . . . . . . . . . . . Parts Recycled . | . . . . . . . . . . . . . . . . . . . . . . . . . . Recycled Matter . | . . . . . . . . . . . . . . . . . . . . . . . . . . Retrieved Matter . | . . . . . . . . . . . . . . . . . . . . . . . . . . Retrieved Components . | . . . . . . . . . . . . . . . . . . . . . . . . . . Parts Scanalyzed . | . . . . . . . . . . . . . . . . . . . . . . . . . . Part Schematics Acquired . | . . . . . . . . . . . . . . . . . . . . . . . . . . Parts Damaged . | . . . . . . . . . . . . . . . . . . . . . . . . . . Bothacking | -11 -10 -10 -9 -9 -8 -7 -7 -7 -7 -6 -6 -6 -5 -5 -5 -5 -4 -4 -4 -4 -4 -3 -3 -3 -3 ------------ Run | Yrd Mat Min Mat Min Mat Fac Gar Fac Low Fac Low Low Fac Upp Upp War Pro Fac Upp Upp Zhi Pro Res Arm Lab Used RIF Installer . | . . . . . . . . . . . . . . . . . . . . . . . . . . Robots Hacked . | . . . . . . . . . . . . . . . . . . . . . . . . . . Non-combat . | . . . . . . . . . . . . . . . . . . . . . . . . . . Combat . | . . . . . . . . . . . . . . . . . . . . . . . . . . Robot Hacks Applied . | . . . . . . . . . . . . . . . . . . . . . . . . . . Relay Couplers Released 8 | . . . . . . . 8 . . . . . . . . . . . . . . . . . . Machine Destruction 8 | . . . . . . . 8 . . . . . . . . . . . . . . . . . . Fabnet Peak Effective % . | . . . . . . . . . . . . . . . . . . . . . . . . . . Robots Rewired 17 | . . . . . . . 7 . . . . . . . . 5 . . . . . 2 . 3 . Allies Hacked 5 | . . . . . . . 2 . . . . . . . . . . 1 . . . 1 . 1 . Hacks Repelled . | . . . . . . . . . . . . . . . . . . . . . . . . . . Allies | -11 -10 -10 -9 -9 -8 -7 -7 -7 -7 -6 -6 -6 -5 -5 -5 -5 -4 -4 -4 -4 -4 -3 -3 -3 -3 -------- Run | Yrd Mat Min Mat Min Mat Fac Gar Fac Low Fac Low Low Fac Upp Upp War Pro Fac Upp Upp Zhi Pro Res Arm Lab Total Allies 24 | . . 1 . . . 3 9 . 1 . . . . . . 5 . . . . . 2 . 3 . Largest Group 5 | . . 1 1 1 1 3 4 1 2 1 . . . . . 5 2 2 . . . 2 . 3 . Highest-Rated Group 296 | . . 31 31 28 28 60 175 20 147 20 . . . . . 296 130 130 . . . 106 . 126 . Highest-Rated Ally 127 | . . 31 31 28 28 20 95 20 127 20 . . . . . 68 65 65 . . . 64 . 42 . Warlord Squad Rendezvous 3 | . . . . . . . . . . 1 . . 2 . . . . . . . . . . . . Infantry 1 | . . . . . . . . . . . . . 1 . . . . . . . . . . . . Geek 1 | . . . . . . . . . . 1 . . . . . . . . . . . . . . . Ghost 1 | . . . . . . . . . . . . . 1 . . . . . . . . . . . . Total Orders . | . . . . . . . . . . . . . . . . . . . . . . . . . . Ally Attacks 101 | . . . 30 . 13 7 24 7 . . . . . . . 7 . . . . . 4 . 9 . Total Damage 2476 | . . . 421 . 168 80 633 125 . . . . . . . 516 . . . . . 154 . 379 . Kills 21 | . . . 10 . 2 . 8 1 . . . . . . . . . . . . . . . . . Allies Corrupted 2 | . . . . . . . 1 . . . . . . . . . . . . . . 1 . . . Allies Melted 2 | . . . . . 1 1 . . . . . . . . . . . . . . . . . . . Intel | -11 -10 -10 -9 -9 -8 -7 -7 -7 -7 -6 -6 -6 -5 -5 -5 -5 -4 -4 -4 -4 -4 -3 -3 -3 -3 ------- Run | Yrd Mat Min Mat Min Mat Fac Gar Fac Low Fac Low Low Fac Upp Upp War Pro Fac Upp Upp Zhi Pro Res Arm Lab Robot Analysis Total 6 | . 2 . . . . . . . . . . . . . . . . . . . 4 . . . . Derelict Logs Recovered 6 | . . . . . . . . . . . 1 1 . . 1 . . . 2 1 . . . . . Drone Launches . | . . . . . . . . . . . . . . . . . . . . . . . . . . Drone Recoveries . | . . . . . . . . . . . . . . . . . . . . . . . . . . Exploration | -11 -10 -10 -9 -9 -8 -7 -7 -7 -7 -6 -6 -6 -5 -5 -5 -5 -4 -4 -4 -4 -4 -3 -3 -3 -3 ------------- Run | Yrd Mat Min Mat Min Mat Fac Gar Fac Low Fac Low Low Fac Upp Upp War Pro Fac Upp Upp Zhi Pro Res Arm Lab Turns Passed 14702 | 71 534 51 564 46 671 827 1834 334 108 798 227 118 1428 490 470 1121 284 848 859 665 172 139 1522 389 132 Spaces Moved 9854 | 52 369 41 429 46 265 459 1071 239 69 550 172 80 694 411 409 882 238 485 659 538 200 374 897 183 42 Core 129 | 8 . . . . . . . . . . . . . . . . . . . 11 110 . . . . Treads . | . . . . . . . . . . . . . . . . . . . . . . . . . . Legs 8261 | 44 369 41 429 46 265 459 1071 239 69 550 172 80 694 411 409 882 238 485 659 527 . . . 84 38 Wheels 1006 | . . . . . . . . . . . . . . . . . . . . . . 6 897 99 4 Hover . | . . . . . . . . . . . . . . . . . . . . . . . . . . Flight 458 | . . . . . . . . . . . . . . . . . . . . . 90 368 . . . Fastest Speed 29 | 50 120 120 90 90 97 105 120 120 120 120 120 120 114 114 114 114 114 110 110 50 29 29 90 90 120 Average Speed 110 | 109 120 120 95 90 99 114 126 120 120 120 120 120 119 114 114 114 114 110 110 112 66 30 108 108 149 Slowest Speed 300 | 120 120 120 120 90 105 126 200 120 120 120 120 120 190 114 114 114 114 110 110 190 300 110 170 120 260 Overloaded Moves . | . . . . . . . . . . . . . . . . . . . . . . . . . . Propulsion Burnouts . | . . . . . . . . . . . . . . . . . . . . . . . . . . Robots Hopped 3 | . . . . . . . . . . . . . . . . . . . . . . 3 . . . Cave-ins Triggered . | . . . . . . . . . . . . . . . . . . . . . . . . . . Teleports 1 | . . . . . . . . . . . . . . . . . . . . . . . . 1 . Exploration Rate (%) 39 | 4 69 15 53 15 27 12 86 9 13 16 50 13 13 71 71 86 32 10 74 72 62 55 23 10 57 Regions Visited 25 Branch Regions 15 Pre-discovered Areas 8 | . . . . . . . . . 1 . 1 . . . 1 . . . 1 1 3 . . . . Known Exits Taken 18 | . 1 . . . . 1 . 1 . 1 1 1 1 1 1 1 1 1 1 1 1 1 1 1 . Unknown Exits Taken 6 | 1 . 1 1 1 1 . . . 1 . . . . . . . . . . . . . . . . Scrap Searched 20 | . . . . . . . . . 1 . 2 2 . 3 2 . 2 . 5 . . 3 . . . Spaces Dug 28 | . . . . . . . 10 . . . . . . . . . . . . . . . . 18 . Terrain Destroyed 350 | . 31 10 7 . 5 3 128 4 8 15 1 21 13 . . . . 60 . . . . 8 36 . Melee . | . . . . . . . . . . . . . . . . . . . . . . . . . . Projectile 41 | . . . . . 5 3 . 4 1 3 1 3 4 . . . . 3 . . . . 8 6 . AOE 308 | . 31 10 7 . . . 128 . 7 12 . 18 9 . . . . 57 . . . . . 29 . Terrain Rammed . | . . . . . . . . . . . . . . . . . . . . . . . . . . Walls Destroyed . | . . . . . . . . . . . . . . . . . . . . . . . . . . Machines Disabled . | . . . . . . . . . . . . . . . . . . . . . . . . . . Actions | -11 -10 -10 -9 -9 -8 -7 -7 -7 -7 -6 -6 -6 -5 -5 -5 -5 -4 -4 -4 -4 -4 -3 -3 -3 -3 --------- Run | Yrd Mat Min Mat Min Mat Fac Gar Fac Low Fac Low Low Fac Upp Upp War Pro Fac Upp Upp Zhi Pro Res Arm Lab Total 12588 | 63 433 42 549 50 582 690 1362 266 87 670 192 88 1205 432 412 981 251 721 751 576 223 395 1197 296 74 Wait 1431 | . 32 1 59 5 215 148 62 8 9 82 15 . 403 17 . 38 12 153 48 18 . 10 72 21 3 Move 9823 | 51 368 40 428 45 264 458 1069 238 68 549 171 80 693 410 408 881 237 484 658 537 199 367 896 182 42 Hop 3 | . . . . . . . . . . . . . . . . . . . . . . 3 . . . Pick Up 112 | 2 4 . 6 . 4 13 15 3 1 6 1 . 14 1 . 1 1 6 4 . 1 1 25 2 1 Fast Attach 103 | 6 2 . 2 . 1 6 9 . . 1 . . 9 . 2 . . 5 5 . 7 5 37 6 . Attach 99 | 1 1 . 2 . 10 7 10 . . 3 . . 10 . . . . 10 5 7 1 1 15 10 6 Detach 20 | 2 1 . . . 1 . . . . 1 . . 3 . . . . 3 3 . . 1 4 1 . Swap 100 | 1 . . 9 . 8 7 20 2 3 10 1 2 14 1 . 2 . 10 2 1 . 1 4 2 . Drop 112 | . . . 8 . 1 2 18 4 1 7 3 . 14 2 2 1 1 12 6 3 2 2 20 3 . Fire 642 | . 25 1 35 . 78 49 101 11 5 11 1 6 45 1 . 8 . 38 20 10 13 . 121 41 22 Melee . | . . . . . . . . . . . . . . . . . . . . . . . . . . Ram 3 | . . . . . . . . . . . . . . . . . . . . . . . 3 . . Kick . | . . . . . . . . . . . . . . . . . . . . . . . . . . Crush . | . . . . . . . . . . . . . . . . . . . . . . . . . . Escape Stasis 3 | . . . . . . . 3 . . . . . . . . . . . . . . . . . . Rewire 137 | . . . . . . . 55 . . . . . . . . 50 . . . . . 4 . 28 . Trap . | . . . . . . . . . . . . . . . . . . . . . . . . . . Miscellaneous . | . . . . . . . . . . . . . . . . . . . . . . . . . . Route ------- -11/Scrapyard -10/Materials (discovered 3 exits: *Mat / *Min x2) -10/Mines -9/Materials (discovered 3 exits: *Mat / [*Min x2]) -9/Mines -8/Materials (discovered 2 exits: *Fac / Sto) -7/Factory -7/Garrison (discovered 3 exits: *Fac x3) -7/Factory (discovered 2 exits: *Low x2) -7/Lower Caves -6/Factory (discovered 2 exits: *Fac / *Low) -6/Lower Caves -6/Lower Caves -5/Factory (discovered 2 exits: Fac / *Upp) -5/Upper Caves -5/Upper Caves -5/Warlord -4/Proximity Caves -4/Factory -4/Upper Caves -4/Upper Caves -4/Zhirov -3/Proximity Caves -3/Research -3/Armory -3/Lab (discovered 1 exit: *Res) History --------- Turn | Location | Event 2 | -11/Scrapyard | Discovered new exit (range 16) 72 | -11/Scrapyard | Entered Materials 81 | -10/Materials | Discovered new exit (range 15) 152 | -10/Materials | Identified exit to Mines 318 | -10/Materials | Build established: Mutant 410 | -10/Materials | Central database locked down 495 | -10/Materials | Discovered new exit (range 4) 606 | -10/Materials | Entered Mines 638 | -10/Mines | Discovered new exit (range 15) 651 | -10/Mines | Escorted by a lone wolf Derelict 657 | -10/Mines | Entered Materials 657 | -9/Materials | Accompanied by 1 ally 657 | -9/Materials | Evolved 2 slots: Propulsion x1, Utility x1 926 | -9/Materials | Discovered new exit (range 8) 987 | -9/Materials | Discovered new exit (range 5) 1200 | -9/Materials | Discovered new exit (range 12) 1221 | -9/Materials | Entered Mines 1221 | -9/Mines | Accompanied by 1 ally 1232 | -9/Mines | Assembled infested the area 1245 | -9/Mines | Met a Derelict bent on vengeance 1257 | -9/Mines | Discovered new exit (range 8) 1267 | -9/Mines | Entered Materials 1267 | -8/Materials | Accompanied by 1 ally 1267 | -8/Materials | Evolved 2 slots: Propulsion x1, Utility x1 1725 | -8/Materials | Discovered new exit (range 3) 1922 | -8/Materials | Identified exit to Storage 1930 | -8/Materials | Lost 6 parts (3n2u1w) 1938 | -8/Materials | Entered Factory 1938 | -7/Factory | Evolved 2 slots: Utility x2 2194 | -7/Factory | Fabricated B-48 Gladiator? 2240 | -7/Factory | Garrison activated, responded to threat 2243 | -7/Factory | Lost 3 allies 2287 | -7/Factory | Lost 4 parts (1p1n2u) 2738 | -7/Factory | Identified exit to Garrison 2744 | -7/Factory | Cargo convoy interrupted 2765 | -7/Factory | Entered Garrison 2778 | -7/Garrison | Triggered checkpoint 2964 | -7/Garrison | Garrison Relay disabled 3023 | -7/Garrison | Build established: Scavenger-Mutant 3097 | -7/Garrison | Triggered checkpoint 3158 | -7/Garrison | Lost 11 parts (1p4n5u1w) 3210 | -7/Garrison | Triggered checkpoint 3317 | -7/Garrison | Discovered new exit (range 10) 3352 | -7/Garrison | Triggered checkpoint 3353 | -7/Garrison | Core integrity fell below 50% 3380 | -7/Garrison | Found embedded Infiltrators 3601 | -7/Garrison | Discovered new exit (range 9) 3683 | -7/Garrison | Attempted to access garrison exit controls, blocked by remote lockdown 3754 | -7/Garrison | Triggered checkpoint 3831 | -7/Garrison | Discovered new exit (range 11) 3858 | -7/Garrison | Triggered checkpoint 3904 | -7/Garrison | Lost 3 parts (3n) 4067 | -7/Garrison | Lost 3 allies 4221 | -7/Garrison | Phase Generator disabled 4356 | -7/Garrison | Triggered checkpoint 4422 | -7/Garrison | Triggered checkpoint 4433 | -7/Garrison | Garrison Relay disabled 4599 | -7/Garrison | Entered Factory 4599 | -7/Factory | Accompanied by 1 ally 4613 | -7/Factory | Identified exit to Lower Caves 4933 | -7/Factory | Entered Lower Caves 4933 | -7/Lower Caves | Accompanied by 1 ally 4967 | -7/Lower Caves | Met a Warlord Commander 4968 | -7/Lower Caves | Learned location of Warlord (-5) 4969 | -7/Lower Caves | Warlord Commander delivered Encrypted Comm Array 4978 | -7/Lower Caves | Found Encrypted Comm Array 5023 | -7/Lower Caves | Build established: Mutant 5027 | -7/Lower Caves | CL-ANK showed up to help 5029 | -7/Lower Caves | CL-ANK revealed a hidden path 5041 | -7/Lower Caves | Entered Factory 5041 | -6/Factory | Accompanied by 1 ally 5041 | -6/Factory | Evolved 2 slots: Utility x1, Weapon x1 5309 | -6/Factory | Joined by Warlord Geek squad 5333 | -6/Factory | Build established: Gunner 5444 | -6/Factory | Discovered new exit (range 13) 5636 | -6/Factory | Identified exit to Factory 5691 | -6/Factory | Spotted B-75 Beast 5706 | -6/Factory | Destroyed B-75 Beast 5825 | -6/Factory | Discovered new exit (range 7) 5837 | -6/Factory | Identified exit to Lower Caves 5839 | -6/Factory | Entered Lower Caves 5908 | -6/Lower Caves | Attracted the attention of an 0b10 checkpoint 6059 | -6/Lower Caves | Discovered new exit (range 5) 6064 | -6/Lower Caves | Identified exit to Lower Caves 6066 | -6/Lower Caves | Entered another Lower Caves area 6068 | -6/Lower Caves | Learned 4 Factory zone layouts 6125 | -6/Lower Caves | Discovered exit to Factory (range 12) 6180 | -6/Lower Caves | Attracted the attention of an 0b10 outpost 6184 | -6/Lower Caves | Entered Factory 6184 | -5/Factory | Evolved 2 slots: Propulsion x1, Utility x1 6185 | -5/Factory | Identified exit to Factory 6238 | -5/Factory | Build established: Scavenger-Gunner 7116 | -5/Factory | Lost 3 parts (1n2w) 7172 | -5/Factory | Joined by Warlord Ghost squad 7399 | -5/Factory | Joined by Warlord Infantry squad 7608 | -5/Factory | Discovered new exit (range 5) 7611 | -5/Factory | Identified exit to Upper Caves 7612 | -5/Factory | Entered Upper Caves 8094 | -5/Upper Caves | Discovered new exit (range 6) 8099 | -5/Upper Caves | Identified exit to Upper Caves 8102 | -5/Upper Caves | Entered another Upper Caves area 8534 | -5/Upper Caves | Learned location of Armory (-3) 8566 | -5/Upper Caves | Discovered new exit (range 5) 8569 | -5/Upper Caves | Identified exit to Warlord 8572 | -5/Upper Caves | Entered Warlord 8781 | -5/Warlord | Received a Watcher feed algorithm from an ecstatic Tinkerer 9179 | -5/Warlord | Met Warlord 9204 | -5/Warlord | Warlord's base attacked by MAIN.C 9538 | -5/Warlord | Opened side exit 9554 | -5/Warlord | Warlord forces counterattacked 9603 | -5/Warlord | Discovered new exit (range 12) 9604 | -5/Warlord | Spotted Executioner 9604 | -5/Warlord | Spotted Executioner 9635 | -5/Warlord | Destroyed Executioner 9688 | -5/Warlord | Identified exit to Proximity Caves 9693 | -5/Warlord | Entered Proximity Caves 9693 | -4/Proximity Caves | Accompanied by 2 allies 9719 | -4/Proximity Caves | Lost 10 allies 9951 | -4/Proximity Caves | Discovered exit to Factory (range 9) 9977 | -4/Proximity Caves | Entered Factory 9977 | -4/Factory | Accompanied by 2 allies 9977 | -4/Factory | Evolved 2 slots: Propulsion x1, Utility x1 10157 | -4/Factory | Found Prototype Processor 10157 | -4/Factory | Identified Exp. Signal Interpreter 10801 | -4/Factory | Discovered new exit (range 11) 10811 | -4/Factory | Identified exit to Upper Caves 10825 | -4/Factory | Entered Upper Caves 10893 | -4/Upper Caves | Encountered a Warlord checkpoint 11152 | -4/Upper Caves | Attracted the attention of an 0b10 checkpoint 11244 | -4/Upper Caves | Learned Research emergency access door positions 11667 | -4/Upper Caves | Discovered new exit (range 15) 11682 | -4/Upper Caves | Identified exit to Upper Caves 11684 | -4/Upper Caves | Entered another Upper Caves area 12172 | -4/Upper Caves | Learned location of Quarantine (-2) 12249 | -4/Upper Caves | Attracted the attention of an 0b10 outpost 12331 | -4/Upper Caves | Spotted B-86 Titan 12345 | -4/Upper Caves | Discovered new exit (range 10) 12348 | -4/Upper Caves | Identified exit to Zhirov 12349 | -4/Upper Caves | Entered Zhirov 12349 | -4/Zhirov | Discovered new exit (range 3) 12359 | -4/Zhirov | Met Zhirov 12372 | -4/Zhirov | Lost 20 parts (2p12n3u3w) 12375 | -4/Zhirov | Learned location of Testing (-3) 12375 | -4/Zhirov | Learned location of Command (-1) 12380 | -4/Zhirov | Zhirov requested help retrieving the SGEMP Prototype 12397 | -4/Zhirov | Found Alien Artifact 12397 | -4/Zhirov | Identified Integrated Reactor 12397 | -4/Zhirov | Installed Integrated Reactor, increased core energy generation (+10) 12479 | -4/Zhirov | Found Alien Artifact 12520 | -4/Zhirov | Identified exit to Proximity Caves 12521 | -4/Zhirov | Entered Proximity Caves 12577 | -3/Proximity Caves | Attracted the attention of an 0b10 outpost 12598 | -3/Proximity Caves | Core integrity fell below 50% 12647 | -3/Proximity Caves | Discovered new exit (range 12) 12659 | -3/Proximity Caves | Identified exit to Research 12660 | -3/Proximity Caves | Entered Research 12660 | -3/Research | Evolved 2 slots: Power x1, Utility x1 13396 | -3/Research | Lost 3 parts (2u1w) 13518 | -3/Research | Lost 4 parts (1p1u2w) 13804 | -3/Research | Lost 6 parts (2p1n1u2w) 13945 | -3/Research | Found Fusion Bomb Launcher 14090 | -3/Research | Lost 3 parts (1p1u1w) 14167 | -3/Research | Discovered new exit (range 6) 14179 | -3/Research | Identified exit to Armory 14182 | -3/Research | Entered Armory 14183 | -3/Armory | Met VL-GR5, who suggested a friendly competition 14277 | -3/Armory | Core integrity fell below 50% 14319 | -3/Armory | Lost 7 parts (2p3n1u1w) 14373 | -3/Armory | P-80 Master assimilated allied Champion 8c 14448 | -3/Armory | System corruption reached 10% 14457 | -3/Armory | Lost 3 parts (3w) 14555 | -3/Armory | Identified Transdimensional Reconstructor 14555 | -3/Armory | Warped through subspace to slip node 14555 | -3/Armory | Discovered new exit (range 1) 14555 | -3/Armory | Identified exit to Lab 14571 | -3/Armory | Entered Lab 14571 | -3/Lab | Discovered new exit (range 9) 14580 | -3/Lab | Identified exit to Research 14587 | -3/Lab | Unable to decrypt terminal 14587 | -3/Lab | Opened the door to a hidden lab 14587 | -3/Lab | Detected by scanners 14588 | -3/Lab | Gained access to the hidden lab's interior 14593 | -3/Lab | Unable to decrypt terminal 14596 | -3/Lab | Confronted by A5 14665 | -3/Lab | Disabled Active System Cloaker 14671 | -3/Lab | MAIN.C forces arrive to investigate 14679 | -3/Lab | Core integrity fell below 20% 14701 | -3/Lab | Found Alien Artifact 14703 | -3/Lab | Destroyed by G-73 Enforcer with Heavy Laser Last Messages --------------- 14665_ Active System Cloaker disabled. 14667_ Myomer Leg destroyed. 14668_ Slug penetrates A5. 14668_ A5 suffers critical hit (Blast). 14668_ Destroyed Exp. System Shield. 14671_ G-73 Enforcer: "DISCOVERED UNAUTHORIZED FACILITY. INVESTIGATING." 14671_ Hdn. Centrium Wheel destroyed. 14674_ Imp. Cooling System destroyed. 14676_ System corrupted: Component data lost. 14678_ Linear Accelerator destroyed. 14679_ Railgun destroyed. 14685_ Fusion Bomb Launcher destroyed. 14685_ Critical hit (Burn: +37). 14689_ A5 suffers critical hit (Burn). 14691_ System corrupted: Matter fused (-6). 14691_ A5 destroyed. 14694_ Myomer Leg destroyed. 14696_ Lgt. Particle Reactor destroyed. 14701_ Acquired Alien Artifact. Map ----- +----------------------------------------------------+ | | | | | | | | | | | | | | | | | | | | | | | | | | | ???????????????????????????????????????????????? | | ???????????????????????????????????????????????? | | ????????????????????####???????????????????????? | | ??????????????# """"""" #??????????????????????? | | ??????????????#"""""""""#??????????????????????? | | ????????""#####"!""!""!"#####??????????????????? | | ???????"""" """"""""""" #??????????????????? | | ?????? "#??????????????????? | | ?????? ""#??????????????????? | | ?????? ""#??????????????????? | | ???????" ""#??????????????????? | | ???????" " "#??????????????????? | | ??????????# @""#??????????????????? | | ??????????#"" "#??????????????????? | | ??????????#"" "#??????????????????? | | ??????????#"" #####??????????????? | | ??????????# g """"??????????????? | | ????????""" g!%#######?????#####??? | | ????????"" g#####<####### #??? | | ??????? % %%% #??? | | ?????? # ########### #??? | | ?????? "###?????????#####??? | | ??????? """" " #??????????????????? | | ??????? ""##### #??????????????????? | | ???????? ""????#" #??????????????????? | | ???????? ???????#" "#??????????????????? | | ????????? ????????#" "#??????????????????? | | ??????????? ?????????#" "#??????????????????? | | ?????????????????????"" ""??????????????????? | | ????????????????????? ""??????????????????? | | ????????????????????? "???????????????????? | | ????????????????????? "???????????????????? | | ????????????????????? " """???????????????????? | | ?????????????????????"""""""???????????????????? | | ????????????????????????#??????????????????????? | | ???????????????????????????????????????????????? | | ???????????????????????????????????????????????? | +----------------------------------------------------+ Best States ------------- Heat Dissipation 101 Energy Generation 53 Energy Capacity 665 Matter Stores 300 Matter Capacity 300 Sight Range 16 Terrain Scan Density 210 Cloak Strength 2 Base Temperature (-) 200 Armor Coverage 600 Resistance: KI 30 Phase Shifting 10 Evasion (%) 69 Targeting Accuracy 20 Target Analysis 12 Core Analysis 9 Particle Charging 15 Item Schematics ----------------- Assault Drone Bay | -4/Zhirov | Free Exp. Heat Sink | -4/Zhirov | Free Exp. Optical Array | -4/Zhirov | Free Imp. Arc Thrower | -4/Zhirov | Free Robot Schematics ------------------ None Fabricated ------------ B-48 Gladiator | x3 | -7/Factory | Preloaded Alien Tech Used ----------------- Integrated Reactor Transdimensional Reconstructor Achievements -------------- Anyone Home? Challenges ------------ None Game ------ Seed CargoSubdwellerSheargun Manual? 0 Play Time 02:13:03 Cumulative 65.2 hours Start 2024.03.20 @ 10:48:20 End 2024.03.20 @ 13:02:32 Sessions 1 Manual Loads 0 Difficulty Rogue Special Mode None Game No. 106 Rogue 90 Adventurer 16 Explorer 0 Win Type - Total 1 Types 1/0/0/0/0/0/0/0/0 Lore% 36 Gallery% 54 Achievement% 48 Wizard Run 0 Options --------- Layout 1 ASCII 0 Keyboard 0 Movement Vi Keybinds 0 Fullscreen 1 Font 20/SmallcapsGlow Map View 64x48 Zoom Use 0% Tactical HUD 1 Map Filters NONE Filters NONE Steam 1 RUN: 76f77cf2-814e-4d6a-ace2-39473c3011ab